[Event "*** Titled Tuesday Blitz"]
[Site "Chess.com"]
[Date "2020.11.24"]
[Round "4"]
[White "GukeshDommaraju"]
[Black "Bacyanide"]
[Result "1-0"]
[WhiteElo "2885"]
[BlackElo "2421"]
[TimeControl "180+1"]
[EndTime "10:55:59 PST"]
[Termination "GukeshDommaraju won by resignation"]

1. e4 {[%clk 0:03:00.9]} 1... c6 {[%clk 0:01:59.3]} 2. d3 {[%clk 0:02:57.1]}
2... d5 {[%clk 0:01:59.4]} 3. Nd2 {[%clk 0:02:57.2]} 3... e5 {[%clk 0:01:54.3]}
4. Ngf3 {[%clk 0:02:56.1]} 4... Bd6 {[%clk 0:01:54.3]} 5. d4 {[%clk 0:02:56.5]}
5... exd4 {[%clk 0:01:52.7]} 6. exd5 {[%clk 0:02:55.8]} 6... cxd5 {[%clk
0:01:52.4]} 7. Nb3 {[%clk 0:02:56.1]} 7... Nf6 {[%clk 0:01:51.7]} 8. Be2 {[%clk
0:02:53.4]} 8... O-O {[%clk 0:01:51.5]} 9. O-O {[%clk 0:02:53.7]} 9... Re8
{[%clk 0:01:51.9]} 10. Nbxd4 {[%clk 0:02:53.4]} 10... Nc6 {[%clk 0:01:51.8]} 11.
c3 {[%clk 0:02:51.4]} 11... h6 {[%clk 0:01:51.6]} 12. Re1 {[%clk 0:02:48.5]}
12... Bg4 {[%clk 0:01:51.2]} 13. Be3 {[%clk 0:02:45.3]} 13... Rc8 {[%clk
0:01:46.9]} 14. h3 {[%clk 0:02:35]} 14... Bd7 {[%clk 0:01:41.1]} 15. Bd3 {[%clk
0:02:31.2]} 15... Bb8 {[%clk 0:01:40.7]} 16. Nxc6 {[%clk 0:02:14.9]} 16... bxc6
{[%clk 0:01:37.8]} 17. Bc5 {[%clk 0:02:14.8]} 17... Qc7 {[%clk 0:01:35.1]} 18.
Qc2 {[%clk 0:02:06.4]} 18... Qf4 {[%clk 0:01:18.5]} 19. Be3 {[%clk 0:02:03.9]}
19... Qd6 {[%clk 0:01:18.4]} 20. Bf5 {[%clk 0:01:53.1]} 20... Ne4 {[%clk
0:01:12.5]} 21. Bxd7 {[%clk 0:01:39.9]} 21... Qxd7 {[%clk 0:01:13.4]} 22. Nd2
{[%clk 0:01:22.3]} 22... Qd6 {[%clk 0:01:05.4]} 23. Nf1 {[%clk 0:01:22.1]} 23...
f5 {[%clk 0:01:04.4]} 24. Rad1 {[%clk 0:00:52.7]} 24... f4 {[%clk 0:01:00.6]}
25. Bc1 {[%clk 0:00:40]} 25... f3 {[%clk 0:01:00.1]} 26. gxf3 {[%clk 0:00:30.4]}
26... Qg6+ {[%clk 0:00:58]} 27. Ng3 {[%clk 0:00:30.7]} 27... Bxg3 {[%clk
0:00:53.6]} 28. fxg3 {[%clk 0:00:31]} 28... Qxg3+ {[%clk 0:00:51]} 29. Qg2
{[%clk 0:00:31.1]} 29... Qxg2+ {[%clk 0:00:45.2]} 30. Kxg2 {[%clk 0:00:32]}
30... Nd6 {[%clk 0:00:45]} 31. b3 {[%clk 0:00:31.1]} 31... Nf5 {[%clk
0:00:43.7]} 32. Kf2 {[%clk 0:00:28.3]} 32... Kf7 {[%clk 0:00:42.5]} 33. Ba3
{[%clk 0:00:21.3]} 33... Re6 {[%clk 0:00:41.9]} 34. Rxe6 {[%clk 0:00:19.9]}
34... Kxe6 {[%clk 0:00:42.8]} 35. Re1+ {[%clk 0:00:20.8]} 35... Kf6 {[%clk
0:00:42.8]} 36. Bc5 {[%clk 0:00:21.7]} 36... a6 {[%clk 0:00:41.8]} 37. a4 {[%clk
0:00:21]} 37... Rb8 {[%clk 0:00:40.5]} 38. b4 {[%clk 0:00:21.2]} 38... g5 {[%clk
0:00:37.6]} 39. f4 {[%clk 0:00:17.7]} 39... gxf4 {[%clk 0:00:32.5]} 40. Kf3
{[%clk 0:00:18.1]} 40... Rg8 {[%clk 0:00:31.1]} 41. Kxf4 {[%clk 0:00:16.3]}
41... Rg3 {[%clk 0:00:25.2]} 42. Bd4+ {[%clk 0:00:16]} 42... Kg6 {[%clk
0:00:18]} 43. Re6+ {[%clk 0:00:15.9]} 43... Kf7 {[%clk 0:00:15.4]} 44. Rf6+
{[%clk 0:00:15.5]} 44... Ke7 {[%clk 0:00:15.7]} 45. Rxf5 {[%clk 0:00:15.8]}
45... Rxh3 {[%clk 0:00:16.1]} 46. Re5+ {[%clk 0:00:15.1]} 46... Kd7 {[%clk
0:00:15.4]} 47. Kg4 {[%clk 0:00:13.7]} 47... Rh1 {[%clk 0:00:15.1]} 48. Rh5
{[%clk 0:00:13.5]} 48... Ra1 {[%clk 0:00:13.6]} 49. a5 {[%clk 0:00:13.3]} 49...
c5 {[%clk 0:00:12.8]} 50. Rxd5+ {[%clk 0:00:11.6]} 50... Kc6 {[%clk 0:00:13.7]}
51. Rxc5+ {[%clk 0:00:12.5]} 51... Kb7 {[%clk 0:00:14.1]} 52. Rh5 {[%clk
0:00:12.4]} 52... Rd1 {[%clk 0:00:14.6]} 53. Rxh6 {[%clk 0:00:12.5]} 53... Rd3
{[%clk 0:00:14.6]} 54. Kf5 {[%clk 0:00:12.6]} 1-0

[Event "*** Titled Tuesday Blitz"]
[Site "Chess.com"]
[Date "2020.11.24"]
[Round "4"]
[White "levallem"]
[Black "akanga001"]
[Result "1-0"]
[WhiteElo "2240"]
[BlackElo "1950"]
[TimeControl "180+1"]
[EndTime "10:55:59 PST"]
[Termination "levallem won on time"]

1. d4 {[%clk 0:03:00.9]} 1... Nf6 {[%clk 0:02:36.2]} 2. c4 {[%clk 0:02:56.1]}
2... b6 {[%clk 0:02:36.1]} 3. Nc3 {[%clk 0:02:47]} 3... Bb7 {[%clk 0:02:35.5]}
4. f3 {[%clk 0:02:47.3]} 4... d6 {[%clk 0:02:34]} 5. e4 {[%clk 0:02:47.4]} 5...
Nbd7 {[%clk 0:02:34.4]} 6. Be3 {[%clk 0:02:47.7]} 6... e5 {[%clk 0:02:33.7]} 7.
Nge2 {[%clk 0:02:46.1]} 7... Be7 {[%clk 0:02:33.4]} 8. g3 {[%clk 0:02:34.8]}
8... a6 {[%clk 0:02:32.1]} 9. Bg2 {[%clk 0:02:34.2]} 9... O-O {[%clk 0:02:31.4]}
10. O-O {[%clk 0:02:33.8]} 10... Re8 {[%clk 0:02:20.9]} 11. b4 {[%clk
0:02:33.6]} 11... Bf8 {[%clk 0:02:18.7]} 12. Qb3 {[%clk 0:02:31.2]} 12... g6
{[%clk 0:02:10.6]} 13. a4 {[%clk 0:02:27.3]} 13... Bg7 {[%clk 0:02:08.2]} 14. a5
{[%clk 0:02:25]} 14... exd4 {[%clk 0:02:01.3]} 15. Bxd4 {[%clk 0:02:21.2]} 15...
Ne5 {[%clk 0:01:59.9]} 16. axb6 {[%clk 0:02:17.5]} 16... cxb6 {[%clk 0:01:57.7]}
17. Nd5 {[%clk 0:02:07.6]} 17... Nxd5 {[%clk 0:01:50.5]} 18. cxd5 {[%clk
0:02:08.5]} 18... b5 {[%clk 0:01:42.8]} 19. f4 {[%clk 0:02:05]} 19... Nc4 {[%clk
0:01:42.4]} 20. Bxg7 {[%clk 0:02:00]} 20... Kxg7 {[%clk 0:01:43.1]} 21. Nd4
{[%clk 0:01:50.4]} 21... Qb6 {[%clk 0:01:39]} 22. Qc3 {[%clk 0:01:42]} 22...
Rac8 {[%clk 0:01:34.9]} 23. Kh1 {[%clk 0:01:41.3]} 23... Kg8 {[%clk 0:01:29.7]}
24. Qd3 {[%clk 0:01:21.7]} 24... Nb2 {[%clk 0:01:23.2]} 25. Qd2 {[%clk
0:01:15.9]} 25... Nc4 {[%clk 0:01:10.6]} 26. Qf2 {[%clk 0:01:12.4]} 26... a5
{[%clk 0:00:56.6]} 27. bxa5 {[%clk 0:01:11.6]} 27... Nxa5 {[%clk 0:00:55.4]} 28.
Rfb1 {[%clk 0:01:10.9]} 28... b4 {[%clk 0:00:52.6]} 29. h4 {[%clk 0:00:58.5]}
29... Rc3 {[%clk 0:00:39.7]} 30. Kh2 {[%clk 0:00:42.7]} 30... Rec8 {[%clk
0:00:38.7]} 31. Qd2 {[%clk 0:00:32.6]} 31... R3c4 {[%clk 0:00:26.7]} 32. Rd1
{[%clk 0:00:16.8]} 32... Rxd4 {[%clk 0:00:20.4]} 33. Qxd4 {[%clk 0:00:16.4]}
33... Qxd4 {[%clk 0:00:20.9]} 34. Rxd4 {[%clk 0:00:16.9]} 34... Nb3 {[%clk
0:00:21.2]} 35. Rxb4 {[%clk 0:00:17.1]} 35... Nxa1 {[%clk 0:00:20.5]} 36. Rxb7
{[%clk 0:00:17.3]} 36... Rc2 {[%clk 0:00:16.6]} 37. Rd7 {[%clk 0:00:17]} 37...
Nb3 {[%clk 0:00:13.9]} 38. Rxd6 {[%clk 0:00:16.9]} 38... Nd4 {[%clk 0:00:14.1]}
39. Kh3 {[%clk 0:00:15.4]} 39... h5 {[%clk 0:00:11.6]} 40. e5 {[%clk 0:00:13.1]}
40... Rc3 {[%clk 0:00:10.8]} 41. Rd8+ {[%clk 0:00:11.8]} 41... Kg7 {[%clk
0:00:09.1]} 42. d6 {[%clk 0:00:06.6]} 42... Nf5 {[%clk 0:00:09.4]} 43. d7 {[%clk
0:00:05]} 43... Rd3 {[%clk 0:00:08.8]} 44. Be4 {[%clk 0:00:04.2]} 44... Rxg3+
{[%clk 0:00:06.8]} 45. Kh2 {[%clk 0:00:04.4]} 45... Rg4 {[%clk 0:00:01.1]} 46.
Bxf5 {[%clk 0:00:04.3]} 46... gxf5 {[%clk 0:00:02]} 47. Rg8+ {[%clk 0:00:04.2]}
1-0

[Event "*** Titled Tuesday Blitz"]
[Site "Chess.com"]
[Date "2020.11.24"]
[Round "4"]
[White "ftorodent"]
[Black "FLamps8"]
[Result "1-0"]
[WhiteElo "2652"]
[BlackElo "2474"]
[TimeControl "180+1"]
[EndTime "10:56:00 PST"]
[Termination "ftorodent won by resignation"]

1. d4 {[%clk 0:03:00.9]} 1... d5 {[%clk 0:02:59.8]} 2. c4 {[%clk 0:03:00.7]}
2... c6 {[%clk 0:03:00.3]} 3. cxd5 {[%clk 0:02:59.9]} 3... cxd5 {[%clk 0:03:00]}
4. Bf4 {[%clk 0:03:00.4]} 4... Nc6 {[%clk 0:02:58.4]} 5. e3 {[%clk 0:03:00.3]}
5... a6 {[%clk 0:02:52]} 6. Nc3 {[%clk 0:03:00]} 6... Nf6 {[%clk 0:02:51.7]} 7.
Bd3 {[%clk 0:02:58.7]} 7... Bg4 {[%clk 0:02:50.9]} 8. Nge2 {[%clk 0:02:58.8]}
8... e6 {[%clk 0:02:49.9]} 9. O-O {[%clk 0:02:58.8]} 9... Bd6 {[%clk 0:02:49.6]}
10. Bxd6 {[%clk 0:02:58.8]} 10... Qxd6 {[%clk 0:02:49.4]} 11. f3 {[%clk
0:02:59.5]} 11... Bh5 {[%clk 0:02:46.1]} 12. Rc1 {[%clk 0:02:59.4]} 12... Bg6
{[%clk 0:02:42.5]} 13. Nf4 {[%clk 0:02:59.1]} 13... Bxd3 {[%clk 0:02:39.2]} 14.
Nxd3 {[%clk 0:02:58.1]} 14... O-O {[%clk 0:02:40.1]} 15. Na4 {[%clk 0:02:55.3]}
15... e5 {[%clk 0:02:37.8]} 16. dxe5 {[%clk 0:02:53.3]} 16... Nxe5 {[%clk
0:02:38.7]} 17. Nxe5 {[%clk 0:02:53.6]} 17... Qxe5 {[%clk 0:02:39.6]} 18. Qd4
{[%clk 0:02:53.2]} 18... Rfe8 {[%clk 0:02:26.2]} 19. Rfe1 {[%clk 0:02:19.8]}
19... Re7 {[%clk 0:01:54.9]} 20. Qxe5 {[%clk 0:02:17.8]} 20... Rxe5 {[%clk
0:01:55.8]} 21. Kf2 {[%clk 0:02:14.4]} 21... Re7 {[%clk 0:01:48.8]} 22. Rc3
{[%clk 0:02:10.1]} 22... Rae8 {[%clk 0:01:48.4]} 23. Rd3 {[%clk 0:02:01.6]}
23... Rc7 {[%clk 0:01:36.6]} 24. Nc3 {[%clk 0:01:59.9]} 24... Re5 {[%clk
0:01:26.6]} 25. Red1 {[%clk 0:01:57.1]} 25... Rce7 {[%clk 0:01:26.4]} 26. Nxd5
{[%clk 0:01:31.5]} 26... Nxd5 {[%clk 0:01:24.8]} 27. Rxd5 {[%clk 0:01:31.6]}
27... Rxe3 {[%clk 0:01:24.8]} 28. Rd8+ {[%clk 0:01:31.7]} 28... Re8 {[%clk
0:01:25]} 29. Rxe8+ {[%clk 0:01:31.9]} 29... Rxe8 {[%clk 0:01:25.9]} 30. Rd7
{[%clk 0:01:32.2]} 30... Rb8 {[%clk 0:01:25.1]} 31. Ke3 {[%clk 0:01:29.3]} 31...
g6 {[%clk 0:01:09.4]} 32. b4 {[%clk 0:01:26.9]} 32... b6 {[%clk 0:01:02.1]} 33.
a4 {[%clk 0:01:25.5]} 33... Rc8 {[%clk 0:00:42.7]} 34. Rd6 {[%clk 0:01:16.2]}
34... Rc3+ {[%clk 0:00:28.1]} 35. Kd4 {[%clk 0:01:04]} 35... Ra3 {[%clk
0:00:28.1]} 36. Rxb6 {[%clk 0:01:00.2]} 36... Rxa4 {[%clk 0:00:28]} 37. Kc5
{[%clk 0:01:00.2]} 37... Ra2 {[%clk 0:00:25.1]} 38. g4 {[%clk 0:01:00.2]} 38...
Kg7 {[%clk 0:00:22.8]} 39. h4 {[%clk 0:01:00]} 39... h5 {[%clk 0:00:20.8]} 40.
gxh5 {[%clk 0:00:55.6]} 40... gxh5 {[%clk 0:00:21.7]} 41. Rd6 {[%clk 0:00:55.1]}
41... f6 {[%clk 0:00:20.7]} 42. Rd4 {[%clk 0:00:41.7]} 42... Kg6 {[%clk
0:00:19.6]} 43. Rf4 {[%clk 0:00:41.8]} 43... Ra4 {[%clk 0:00:12.6]} 44. Rd4
{[%clk 0:00:33.2]} 44... Ra3 {[%clk 0:00:12.5]} 45. Kb6 {[%clk 0:00:28.3]} 45...
Kf5 {[%clk 0:00:11.7]} 46. Rd5+ {[%clk 0:00:27.8]} 46... Kg6 {[%clk 0:00:10.7]}
47. f4 {[%clk 0:00:25.3]} 47... Rh3 {[%clk 0:00:05.3]} 48. f5+ {[%clk
0:00:24.8]} 48... Kf7 {[%clk 0:00:05.8]} 49. Rd7+ {[%clk 0:00:24.7]} 49... Ke8
{[%clk 0:00:06]} 50. Rd4 {[%clk 0:00:24.5]} 50... Ra3 {[%clk 0:00:05.1]} 51. Rd5
{[%clk 0:00:24.7]} 51... Ra4 {[%clk 0:00:04.9]} 52. Kc5 {[%clk 0:00:22.5]} 52...
Ke7 {[%clk 0:00:03.9]} 53. Rd6 {[%clk 0:00:18.9]} 53... Rxb4 {[%clk 0:00:03.5]}
1-0

[Event "*** Titled Tuesday Blitz"]
[Site "Chess.com"]
[Date "2020.11.24"]
[Round "4"]
[White "Chuchofrio1"]
[Black "bylavochka"]
[Result "0-1"]
[WhiteElo "2396"]
[BlackElo "2178"]
[TimeControl "180+1"]
[EndTime "10:56:01 PST"]
[Termination "bylavochka won by checkmate"]

1. d4 {[%clk 0:03:00.9]} 1... Nf6 {[%clk 0:02:59.7]} 2. c4 {[%clk 0:03:00.6]}
2... e6 {[%clk 0:03:00]} 3. Nc3 {[%clk 0:03:00.1]} 3... d5 {[%clk 0:03:00.4]} 4.
cxd5 {[%clk 0:02:58.1]} 4... exd5 {[%clk 0:02:59.9]} 5. Bg5 {[%clk 0:02:57.2]}
5... Nbd7 {[%clk 0:02:57.2]} 6. e3 {[%clk 0:02:56.7]} 6... c6 {[%clk 0:02:53.5]}
7. Bd3 {[%clk 0:02:56.5]} 7... Be7 {[%clk 0:02:53.9]} 8. h3 {[%clk 0:02:55.3]}
8... O-O {[%clk 0:02:54]} 9. Nf3 {[%clk 0:02:53.3]} 9... Re8 {[%clk 0:02:53.7]}
10. O-O {[%clk 0:02:52.8]} 10... Nf8 {[%clk 0:02:53.7]} 11. Qc2 {[%clk
0:02:49.5]} 11... Ne4 {[%clk 0:02:43.1]} 12. Bxe7 {[%clk 0:02:29.5]} 12... Qxe7
{[%clk 0:02:42.3]} 13. Bxe4 {[%clk 0:02:28]} 13... dxe4 {[%clk 0:02:40.2]} 14.
Nd2 {[%clk 0:02:19.2]} 14... f5 {[%clk 0:02:36.1]} 15. Rae1 {[%clk 0:02:09.1]}
15... Be6 {[%clk 0:02:00.8]} 16. f3 {[%clk 0:01:57.4]} 16... exf3 {[%clk
0:01:58.1]} 17. Nxf3 {[%clk 0:01:57.3]} 17... Ng6 {[%clk 0:01:58.2]} 18. e4
{[%clk 0:01:53.8]} 18... fxe4 {[%clk 0:01:47]} 19. Nxe4 {[%clk 0:01:53.2]} 19...
Bf5 {[%clk 0:01:33.5]} 20. Qb3+ {[%clk 0:01:52.7]} 20... Be6 {[%clk 0:01:27.1]}
21. Qd1 {[%clk 0:01:40.3]} 21... Bc4 {[%clk 0:00:52.9]} 22. Ned2 {[%clk
0:01:09.9]} 22... Qb4 {[%clk 0:00:20.3]} 23. Rxe8+ {[%clk 0:01:05]} 23... Rxe8
{[%clk 0:00:19.9]} 24. Re1 {[%clk 0:00:53.3]} 24... Rxe1+ {[%clk 0:00:16.6]} 25.
Qxe1 {[%clk 0:00:53.2]} 25... Bf7 {[%clk 0:00:16.6]} 26. b3 {[%clk 0:00:43.6]}
26... Nf4 {[%clk 0:00:11.8]} 27. Qe3 {[%clk 0:00:40.5]} 27... Nd5 {[%clk
0:00:09]} 28. Qe5 {[%clk 0:00:33.2]} 28... h6 {[%clk 0:00:04.6]} 29. Kh2 {[%clk
0:00:30.5]} 29... Kh7 {[%clk 0:00:05]} 30. Ne4 {[%clk 0:00:26.4]} 30... Bg6
{[%clk 0:00:05.4]} 31. Nh4 {[%clk 0:00:21.7]} 31... Bxe4 {[%clk 0:00:04.7]} 32.
Qxe4+ {[%clk 0:00:21.4]} 32... Kg8 {[%clk 0:00:05.3]} 33. Qe6+ {[%clk 0:00:20]}
33... Kh7 {[%clk 0:00:03.3]} 34. Qg6+ {[%clk 0:00:20.1]} 34... Kg8 {[%clk
0:00:03.6]} 35. Nf5 {[%clk 0:00:20.1]} 35... Qf8 {[%clk 0:00:03.6]} 36. Qe6+
{[%clk 0:00:19.5]} 36... Qf7 {[%clk 0:00:03.7]} 37. Qc8+ {[%clk 0:00:18.5]}
37... Kh7 {[%clk 0:00:04.1]} 38. Nd6 {[%clk 0:00:17.4]} 38... Qf4+ {[%clk
0:00:03.3]} 39. g3 {[%clk 0:00:17.6]} 39... Qf2+ {[%clk 0:00:03.3]} 40. Kh1
{[%clk 0:00:17.1]} 40... Ne3 {[%clk 0:00:03.8]} 41. Qf5+ {[%clk 0:00:04.8]}
41... Nxf5 {[%clk 0:00:03.7]} 42. Nxf5 {[%clk 0:00:04.7]} 42... Qxf5 {[%clk
0:00:04.6]} 43. Kg2 {[%clk 0:00:05.2]} 43... Qb1 {[%clk 0:00:04.9]} 44. Kf3
{[%clk 0:00:05.6]} 44... Qxa2 {[%clk 0:00:05.4]} 45. Ke4 {[%clk 0:00:06.5]}
45... Qxb3 {[%clk 0:00:06.3]} 46. d5 {[%clk 0:00:07.4]} 46... Qxd5+ {[%clk
0:00:06.7]} 47. Ke3 {[%clk 0:00:07.6]} 47... a5 {[%clk 0:00:07.6]} 48. Kf2
{[%clk 0:00:08.2]} 48... a4 {[%clk 0:00:08.5]} 49. Kg1 {[%clk 0:00:08.2]} 49...
a3 {[%clk 0:00:09.4]} 50. Kh2 {[%clk 0:00:09.1]} 50... a2 {[%clk 0:00:10.2]} 51.
h4 {[%clk 0:00:10]} 51... a1=Q {[%clk 0:00:09.5]} 52. h5 {[%clk 0:00:10.9]}
52... Qah1# {[%clk 0:00:09.7]} 0-1

[Event "*** Titled Tuesday Blitz"]
[Site "Chess.com"]
[Date "2020.11.24"]
[Round "4"]
[White "queen_iryna"]
[Black "enriquetejedor"]
[Result "0-1"]
[WhiteElo "2261"]
[BlackElo "2481"]
[TimeControl "180+1"]
[EndTime "10:56:02 PST"]
[Termination "enriquetejedor won by resignation"]

1. e4 {[%clk 0:03:00.9]} 1... c5 {[%clk 0:01:53.3]} 2. Nf3 {[%clk 0:03:00.5]}
2... Nf6 {[%clk 0:01:52.5]} 3. e5 {[%clk 0:02:59.5]} 3... Nd5 {[%clk 0:01:52.5]}
4. c4 {[%clk 0:02:58.9]} 4... Nc7 {[%clk 0:01:51.5]} 5. d4 {[%clk 0:02:58.6]}
5... cxd4 {[%clk 0:01:52.4]} 6. Qxd4 {[%clk 0:02:58.6]} 6... Nc6 {[%clk
0:01:53.3]} 7. Qe4 {[%clk 0:02:58.9]} 7... d5 {[%clk 0:01:53.1]} 8. exd6 {[%clk
0:02:57.4]} 8... Qxd6 {[%clk 0:01:53.1]} 9. Nc3 {[%clk 0:02:55.7]} 9... g6
{[%clk 0:01:53.4]} 10. Be2 {[%clk 0:02:46.7]} 10... Bf5 {[%clk 0:01:47.2]} 11.
Qh4 {[%clk 0:02:45.1]} 11... Bg7 {[%clk 0:01:47.2]} 12. O-O {[%clk 0:02:44.6]}
12... O-O {[%clk 0:01:45.1]} 13. Bh6 {[%clk 0:02:44.3]} 13... Ne6 {[%clk
0:01:35]} 14. Rad1 {[%clk 0:02:33]} 14... Qb4 {[%clk 0:01:32]} 15. Bc1 {[%clk
0:02:02.2]} 15... Rad8 {[%clk 0:01:19.6]} 16. Nd5 {[%clk 0:02:01.2]} 16... Qa4
{[%clk 0:00:56.6]} 17. Nxe7+ {[%clk 0:01:50.2]} 17... Nxe7 {[%clk 0:00:33.1]}
18. Qxe7 {[%clk 0:01:51.1]} 18... Qxa2 {[%clk 0:00:33.1]} 19. Rxd8 {[%clk
0:01:39.8]} 19... Rxd8 {[%clk 0:00:31.6]} 20. Ng5 {[%clk 0:01:11.7]} 20... Rf8
{[%clk 0:00:30.1]} 21. Nxe6 {[%clk 0:01:10]} 21... Bxe6 {[%clk 0:00:28.3]} 22.
Qxb7 {[%clk 0:01:09.1]} 22... Bxc4 {[%clk 0:00:27.5]} 23. Bxc4 {[%clk
0:01:08.8]} 23... Qxc4 {[%clk 0:00:28.4]} 24. Qxa7 {[%clk 0:01:08.3]} 24... Rc8
{[%clk 0:00:28.6]} 25. g3 {[%clk 0:00:52.7]} 25... h5 {[%clk 0:00:22.8]} 26. h4
{[%clk 0:00:41.1]} 26... Bd4 {[%clk 0:00:22]} 27. Qa3 {[%clk 0:00:39.6]} 27...
Rb8 {[%clk 0:00:19.1]} 28. Qf3 {[%clk 0:00:35.1]} 28... Rb3 {[%clk 0:00:17.2]}
29. Qg2 {[%clk 0:00:35.1]} 29... Qe2 {[%clk 0:00:13]} 30. Qa8+ {[%clk
0:00:23.6]} 30... Kg7 {[%clk 0:00:12.1]} 31. Qg2 {[%clk 0:00:23.5]} 31... Kh7
{[%clk 0:00:09.6]} 32. Qd5 {[%clk 0:00:19.7]} 32... Rxg3+ {[%clk 0:00:04.1]} 33.
Kh2 {[%clk 0:00:17]} 33... Qxf1 {[%clk 0:00:02.7]} 34. Qxf7+ {[%clk 0:00:16.4]}
34... Bg7 {[%clk 0:00:02.9]} 35. Kxg3 {[%clk 0:00:07.2]} 35... Qg1+ {[%clk
0:00:03.1]} 36. Kf3 {[%clk 0:00:06.4]} 36... Qh1+ {[%clk 0:00:03]} 37. Ke2
{[%clk 0:00:06.3]} 37... Qxc1 {[%clk 0:00:02.9]} 38. Kf3 {[%clk 0:00:05]} 38...
Qxb2 {[%clk 0:00:03]} 39. Kg2 {[%clk 0:00:05.1]} 39... Qe5 {[%clk 0:00:02.7]}
40. Kh3 {[%clk 0:00:03.6]} 40... Qf5+ {[%clk 0:00:02.6]} 41. Qxf5 {[%clk
0:00:03.3]} 41... gxf5 {[%clk 0:00:03.5]} 42. Kg3 {[%clk 0:00:03.4]} 42... Kg6
{[%clk 0:00:04.4]} 43. Kf4 {[%clk 0:00:03.1]} 43... Bh6+ {[%clk 0:00:05.3]} 44.
Kf3 {[%clk 0:00:03]} 44... Bd2 {[%clk 0:00:05.8]} 45. Kg3 {[%clk 0:00:02.6]}
45... Kf6 {[%clk 0:00:05.9]} 46. Kf3 {[%clk 0:00:02.9]} 46... Ke5 {[%clk
0:00:06.8]} 47. Ke2 {[%clk 0:00:03.2]} 47... Ba5 {[%clk 0:00:07.2]} 48. Kf3
{[%clk 0:00:03.4]} 48... Bd8 {[%clk 0:00:08.1]} 49. Kg3 {[%clk 0:00:02.3]} 49...
Ke4 {[%clk 0:00:09]} 50. f3+ {[%clk 0:00:01.9]} 50... Ke3 {[%clk 0:00:09.9]} 51.
Kh3 {[%clk 0:00:01.8]} 51... Bxh4 {[%clk 0:00:10.7]} 52. Kxh4 {[%clk 0:00:01.8]}
52... Kxf3 {[%clk 0:00:11.6]} 53. Kxh5 {[%clk 0:00:01.8]} 53... f4 {[%clk
0:00:12.5]} 54. Kh4 {[%clk 0:00:02]} 54... Ke2 {[%clk 0:00:12.7]} 55. Kh3 {[%clk
0:00:02.9]} 55... f3 {[%clk 0:00:13.6]} 56. Kh2 {[%clk 0:00:02.9]} 56... f2
{[%clk 0:00:14.5]} 0-1

[Event "*** Titled Tuesday Blitz"]
[Site "Chess.com"]
[Date "2020.11.24"]
[Round "4"]
[White "BJthechessgod"]
[Black "Zq1"]
[Result "0-1"]
[WhiteElo "2229"]
[BlackElo "2578"]
[TimeControl "180+1"]
[EndTime "10:56:02 PST"]
[Termination "Zq1 won by resignation"]

1. e4 {[%clk 0:02:55.2]} 1... c5 {[%clk 0:02:59.1]} 2. Nf3 {[%clk 0:02:49.3]}
2... d6 {[%clk 0:02:59.2]} 3. Bb5+ {[%clk 0:02:49.6]} 3... Bd7 {[%clk
0:02:58.8]} 4. Bxd7+ {[%clk 0:02:47.5]} 4... Nxd7 {[%clk 0:02:59.4]} 5. d4
{[%clk 0:02:45.1]} 5... cxd4 {[%clk 0:02:58]} 6. Qxd4 {[%clk 0:02:45.8]} 6...
Ngf6 {[%clk 0:02:58]} 7. Nc3 {[%clk 0:02:45.6]} 7... g6 {[%clk 0:02:58.2]} 8.
Bg5 {[%clk 0:02:44.7]} 8... Bg7 {[%clk 0:02:58.1]} 9. O-O {[%clk 0:02:39.3]}
9... O-O {[%clk 0:02:57.7]} 10. Qd2 {[%clk 0:02:38.5]} 10... Rc8 {[%clk
0:02:53.3]} 11. Rad1 {[%clk 0:02:33.8]} 11... Qb6 {[%clk 0:02:51.2]} 12. Nd5
{[%clk 0:02:29.1]} 12... Nxd5 {[%clk 0:02:48.8]} 13. exd5 {[%clk 0:02:12.3]}
13... Qxb2 {[%clk 0:02:44.6]} 14. Bxe7 {[%clk 0:02:05.9]} 14... Rxc2 {[%clk
0:02:42.5]} 15. Qf4 {[%clk 0:02:05.8]} 15... Re8 {[%clk 0:02:27.3]} 16. Qxd6
{[%clk 0:01:47.2]} 16... Ne5 {[%clk 0:02:18]} 17. Nxe5 {[%clk 0:01:45.2]} 17...
Bxe5 {[%clk 0:02:17.1]} 18. Qd7 {[%clk 0:01:43.6]} 18... Ra8 {[%clk 0:02:10.2]}
19. d6 {[%clk 0:01:41.7]} 19... Bd4 {[%clk 0:02:04.3]} 20. Bh4 {[%clk
0:01:31.2]} 20... Rf8 {[%clk 0:01:41.8]} 21. Qe7 {[%clk 0:01:18.6]} 21... Bc5
{[%clk 0:01:35.2]} 22. Qe4 {[%clk 0:01:10.6]} 22... Re2 {[%clk 0:01:27.3]} 23.
Qd5 {[%clk 0:01:07]} 23... Bb6 {[%clk 0:01:25.3]} 24. d7 {[%clk 0:01:06.6]}
24... Bd8 {[%clk 0:01:21.6]} 25. Bxd8 {[%clk 0:01:01.9]} 25... Rxd8 {[%clk
0:01:21.1]} 26. Qg5 {[%clk 0:01:02.4]} 26... Qb6 {[%clk 0:01:14.6]} 27. Qg4
{[%clk 0:00:53]} 27... Qe6 {[%clk 0:01:09.6]} 28. Qa4 {[%clk 0:00:46.6]} 28...
Rxa2 {[%clk 0:01:07.6]} 29. Qb5 {[%clk 0:00:43.9]} 29... Qc6 {[%clk 0:00:48.2]}
30. Qd3 {[%clk 0:00:26.2]} 30... Qc5 {[%clk 0:00:41.3]} 31. Rd2 {[%clk
0:00:18.8]} 31... Rxd2 {[%clk 0:00:37.5]} 32. Qxd2 {[%clk 0:00:18.5]} 32... Qe7
{[%clk 0:00:37]} 33. Rd1 {[%clk 0:00:18.4]} 33... a5 {[%clk 0:00:36.5]} 34. Qd5
{[%clk 0:00:18]} 34... b6 {[%clk 0:00:27.1]} 35. Qc6 {[%clk 0:00:18.2]} 35...
Qe6 {[%clk 0:00:23.2]} 36. Qc7 {[%clk 0:00:15.7]} 36... Qf6 {[%clk 0:00:23.2]}
37. g3 {[%clk 0:00:12.6]} 37... a4 {[%clk 0:00:22.6]} 38. Rd6 {[%clk 0:00:11.3]}
38... Qe7 {[%clk 0:00:19.7]} 39. Rxb6 {[%clk 0:00:05]} 39... Qxd7 {[%clk
0:00:18.1]} 40. Qc4 {[%clk 0:00:02.9]} 40... Ra8 {[%clk 0:00:15.8]} 41. Rc6
{[%clk 0:00:02.1]} 41... a3 {[%clk 0:00:14.4]} 42. Rc7 {[%clk 0:00:01.8]} 42...
Qe6 {[%clk 0:00:14.4]} 43. Qxe6 {[%clk 0:00:01.2]} 43... fxe6 {[%clk 0:00:14.1]}
44. Rc1 {[%clk 0:00:02.1]} 44... a2 {[%clk 0:00:14]} 45. Ra1 {[%clk 0:00:02.6]}
45... Kf7 {[%clk 0:00:14.3]} 46. Kf1 {[%clk 0:00:02.9]} 46... Kf6 {[%clk
0:00:14.8]} 47. Ke2 {[%clk 0:00:03.7]} 47... Ke5 {[%clk 0:00:15.3]} 48. Kd3
{[%clk 0:00:04.4]} 48... Kf5 {[%clk 0:00:14.7]} 49. f3 {[%clk 0:00:03.6]} 49...
e5 {[%clk 0:00:14.6]} 50. Ke3 {[%clk 0:00:03.8]} 50... Ra3+ {[%clk 0:00:13.3]}
51. Ke2 {[%clk 0:00:03.8]} 51... e4 {[%clk 0:00:13.3]} 52. fxe4+ {[%clk
0:00:03.7]} 52... Kxe4 {[%clk 0:00:12.9]} 53. h4 {[%clk 0:00:03.8]} 53... h5
{[%clk 0:00:12.2]} 54. Kf2 {[%clk 0:00:03.7]} 54... Kd3 {[%clk 0:00:12.3]} 55.
Kf3 {[%clk 0:00:04.3]} 55... Kc2+ {[%clk 0:00:11.7]} 56. Kf4 {[%clk 0:00:05.2]}
56... Kb2 {[%clk 0:00:10.6]} 57. Rf1 {[%clk 0:00:05.5]} 57... a1=Q {[%clk
0:00:10.1]} 58. Rxa1 {[%clk 0:00:05.8]} 58... Rxa1 {[%clk 0:00:09.4]} 59. Kg5
{[%clk 0:00:06.4]} 59... Ra6 {[%clk 0:00:09]} 60. g4 {[%clk 0:00:05.9]} 60...
hxg4 {[%clk 0:00:09]} 61. Kxg4 {[%clk 0:00:06.8]} 61... Kc3 {[%clk 0:00:09.2]}
0-1